bitfinex/quotes_BTCUSD_20260104
["timestamp","ask_amount","ask_price","bid_price","bid_amount"]
[1767509570828,0.01095062,91319.0,91317.0,0.01079893]
[1767509571039,0.01095062,91319.0,91317.0,0.05998254]
[1767509571242,0.00036166,91321.0,91318.0,0.04998254]
[1767509571443,0.00036166,91321.0,91319.0,0.04998254]
[1767509571643,0.05475302,91321.0,91319.0,0.04998254]
[1767509572824,0.05475251,91320.0,91319.0,0.04998254]
[1767509573022,0.05475251,91320.0,91319.0,0.04942154]
[1767509573729,0.05475302,91321.0,91320.0,0.000999]
[1767509573934,0.05475257,91321.0,91320.0,0.000999]
[1767509574135,0.05475257,91321.0,91319.0,0.04942154]
[1767509574333,0.0547526,91321.0,91319.0,0.04942154]
[1767509575951,0.05475251,91320.0,91319.0,0.04942154]
[1767509577046,0.06570298,91321.0,91317.0,0.06570487]
[1767509577264,0.06570298,91321.0,91317.0,0.11568741]
[1767509577638,0.06570298,91321.0,91318.0,0.04998254]
[1767509578494,0.01095104,91321.0,91318.0,0.04998254]
[1767509578708,6.6e-07,91322.0,91321.0,0.05068144]
[1767509579211,6.6e-07,91322.0,91321.0,0.04968244]
[1767509579838,0.05475197,91322.0,91321.0,0.04948237]
[1767509580013,0.06570102,91323.0,91321.0,0.04948237]
[1767509580014,0.06570102,91323.0,91322.0,0.00099834]
[1767509580250,0.06569978,91326.0,91322.0,0.0119486]
[1767509580444,0.06569978,91326.0,91321.0,0.04948237]
[1767509580445,0.05474977,91325.0,91323.0,0.01]
[1767509580627,0.05475012,91324.0,91323.0,0.01]
[1767509580826,0.05474977,91325.0,91323.0,0.01]
[1767509581062,0.06569967,91325.0,91321.0,0.04948237]
[1767509581281,0.06470167,91325.0,91321.0,0.04948237]
[1767509581496,0.05475131,91322.0,91321.0,0.04948237]
[1767509582511,0.05470629,91322.0,91321.0,0.04948237]
[1767509582628,0.05470629,91322.0,91321.0,0.04848337]
[1767509584819,0.01095038,91321.0,91318.0,0.04995514]
[1767509585688,0.06565655,91322.0,91318.0,0.04995514]
[1767509586325,0.06565655,91322.0,91318.0,0.06090588]
[1767509588261,0.11825573,91321.0,91318.0,0.06090588]
[1767509590324,0.11725673,91321.0,91319.0,0.04995514]
[1767509590638,0.17200871,91321.0,91319.0,0.04895614]
[1767509590844,0.11725673,91321.0,91319.0,0.04895614]
[1767509591461,0.06570055,91324.0,91319.0,0.10470768]
[1767509591661,0.01095002,91324.0,91322.0,0.04995514]
[1767509591867,0.06569993,91325.0,91321.0,0.01]
[1767509591868,0.0109499,91325.0,91321.0,0.05475171]
[1767509592062,0.06569885,91326.0,91325.0,0.000999]
[1767509592271,0.06569958,91325.0,91321.0,0.01095038]
[1767509592472,0.06570014,91324.0,91320.0,0.06570301]
[1767509593000,0.06470114,91324.0,91320.0,0.06570301]
[1767509594748,0.01095014,91323.0,91318.0,0.01095074]
[1767509594971,0.01090512,91323.0,91319.0,0.01095062]
[1767509595146,0.06565626,91323.0,91319.0,0.01095062]
[1767509595347,0.06565626,91323.0,91318.0,0.06570442]
[1767509595905,0.06570179,91322.0,91318.0,0.01095074]
[1767509596601,0.06565626,91323.0,91319.0,0.01095062]
[1767509597446,0.06565626,91323.0,91318.0,0.06570397]
[1767509598670,0.01095002,91324.0,91319.0,0.01095062]
[1767509598877,0.11481342,91324.0,91319.0,0.06570363]
[1767509599384,0.06570038,91324.0,91319.0,0.06570363]
[1767509599880,0.06570095,91323.0,91319.0,0.06570363]
[1767509600086,0.01095014,91323.0,91319.0,0.06570363]
[1767509600879,0.06570038,91324.0,91319.0,0.06570363]
[1767509601214,0.0109499,91325.0,91321.0,0.06570203]
[1767509601615,0.06569945,91325.0,91320.0,0.06570299]
[1767509602123,0.0109499,91325.0,91320.0,0.06570299]
[1767509602324,0.06570035,91324.0,91320.0,0.06570299]
[1767509602542,0.06569942,91325.0,91320.0,0.0109505]
[1767509602751,0.06006282,91326.0,91321.0,0.01095038]
[1767509602952,0.06569948,91325.0,91321.0,0.06570186]
[1767509603370,0.06569948,91325.0,91321.0,0.01095038]
[1767509603532,0.01095002,91324.0,91320.0,0.06570261]
[1767509603853,0.06569948,91325.0,91321.0,0.01095038]
[1767509605019,0.06569872,91326.0,91321.0,0.06570204]
[1767509605218,0.04911304,91325.0,91321.0,0.06570204]
[1767509605421,0.11481247,91325.0,91321.0,0.06570204]
[1767509605622,0.04911304,91324.0,91321.0,0.06570204]
[1767509605822,0.0109499,91325.0,91324.0,0.01]
[1767509606972,0.06569942,91325.0,91321.0,0.01095038]
[1767509607125,0.04911304,91324.0,91321.0,0.01095038]
[1767509607715,0.04911304,91324.0,91320.0,0.06570261]
[1767509607916,3.35e-06,91319.0,91314.0,0.01095122]
[1767509608116,3.35e-06,91319.0,91315.0,0.06570612]
[1767509608567,3.35e-06,91319.0,91316.0,0.05475448]
[1767509608817,3.35e-06,91319.0,91316.0,0.06570546]
[1767509609005,3.35e-06,91319.0,91317.0,0.05475426]
[1767509609421,3.35e-06,91319.0,91316.0,0.06570546]
[1767509609575,0.01095062,91319.0,91314.0,0.06570686]
[1767509609778,0.0109056,91319.0,91318.0,0.05474994]
[1767509610684,0.0109505,91320.0,91318.0,0.05474994]
[1767509611169,0.0109505,91320.0,91316.0,0.01095098]
[1767509611425,0.0109505,91320.0,91316.0,0.06570575]
[1767509611637,0.06570305,91320.0,91316.0,0.06570575]
[1767509612019,0.0109505,91320.0,91316.0,0.06570575]
[1767509612223,0.0657025,91321.0,91315.0,0.0109511]
[1767509612426,0.0109505,91320.0,91316.0,0.06570584]
[1767509612635,0.0657025,91321.0,91316.0,0.06570584]
[1767509612839,0.0657025,91321.0,91317.0,0.01095086]
[1767509613042,0.00995138,91321.0,91317.0,0.01095086]
[1767509613255,0.05475133,91322.0,91317.0,0.0657047]
[1767509613256,0.06570159,91322.0,91317.0,0.0657047]
[1767509613674,0.06570159,91322.0,91318.0,0.01095074]
[1767509614819,0.06570159,91322.0,91317.0,0.0657047]
[1767509614820,0.01095038,91321.0,91317.0,0.11298982]
[1767509615627,0.0657023,91321.0,91317.0,0.11298982]
[1767509615784,0.0657023,91321.0,91317.0,0.05823598]
[1767509617446,0.0657023,91321.0,91317.0,0.04728512]
[1767509618181,0.01094978,91326.0,91321.0,0.01]
[1767509618382,0.01099692,91329.0,91321.0,0.01]
[1767509618383,0.05474962,91325.0,91322.0,0.04728512]
[1767509618588,0.01099692,91329.0,91321.0,0.0757017]
[1767509618831,0.06569994,91325.0,91321.0,0.01]
[1767509619025,0.01095002,91324.0,91321.0,0.01]
[1767509619237,0.06570038,91324.0,91321.0,0.01]
[1767509619560,0.06569994,91325.0,91321.0,0.02095038]
[1767509620118,0.0656984,91327.0,91322.0,0.01095026]
[1767509620325,0.0656984,91327.0,91322.0,0.06570145]
[1767509620484,0.06569877,91326.0,91321.0,0.07570185]
[1767509620690,0.0109499,91325.0,91321.0,0.07570207]
[1767509621144,0.06569962,91325.0,91321.0,0.07570207]
[1767509621348,0.06569962,91325.0,91321.0,0.01]
[1767509623161,0.0109505,91320.0,91313.0,0.01095134]
[1767509623478,0.0109505,91320.0,91312.0,0.05475711]
[1767509623479,0.01095098,91316.0,91312.0,0.05475711]
[1767509623641,0.06570454,91318.0,91313.0,0.05475666]
[1767509623828,0.01095086,91317.0,91313.0,0.065708]
[1767509624165,0.01095439,91317.0,91313.0,0.05823646]
[1767509624917,0.02190525,91317.0,91313.0,0.01095134]
[1767509625120,0.02279936,91316.0,91312.0,0.06486921]
[1767509625354,0.05475493,91316.0,91313.0,0.04728512]
[1767509625553,0.02190525,91317.0,91312.0,0.06486921]
[1767509625725,0.02190525,91317.0,91316.0,0.0012584]
[1767509625925,0.05475542,91316.0,91311.0,0.02196]
[1767509626165,0.05475542,91316.0,91311.0,0.06924512]
[1767509626381,0.0109511,91315.0,91312.0,0.04728512]
[1767509626729,0.05475542,91316.0,91315.0,0.04728512]
[1767509626931,0.05475542,91316.0,91315.0,0.03957455]
[1767509627156,0.05475542,91316.0,91315.0,0.00103103]
[1767509627362,0.06570535,91317.0,91315.0,0.00103103]
[1767509628166,0.06570445,91318.0,91315.0,0.00103103]
[1767509628354,0.06570445,91318.0,91317.0,0.000999]
[1767509628550,0.06570445,91318.0,91315.0,0.00103103]
[1767509628854,0.06570445,91318.0,91315.0,0.04831615]
[1767509628855,0.05475478,91317.0,91315.0,0.04831615]
[1767509629089,0.06570458,91318.0,91315.0,0.04831615]
[1767509629304,0.05475434,91317.0,91315.0,0.04831615]
[1767509630016,0.06570458,91318.0,91315.0,0.04831615]
[1767509631329,0.05475436,91317.0,91315.0,0.04831615]
[1767509632304,0.05475436,91317.0,91315.0,0.04094736]
[1767509634061,0.05475371,91318.0,91317.0,0.000999]
[1767509634268,0.06570445,91318.0,91315.0,0.04094736]
[1767509634849,0.05475439,91317.0,91315.0,0.04094736]
[1767509635181,0.05475491,91316.0,91315.0,0.04094736]
[1767509635426,0.05475439,91317.0,91315.0,0.04094736]
[1767509637467,0.06570422,91319.0,91317.0,0.000999]
[1767509637780,0.02936304,91347.0,91319.0,0.05823574]
[1767509637781,0.01095014,91323.0,91319.0,0.05823574]
[1767509637982,0.01095014,91323.0,91320.0,0.04728512]
[1767509638182,0.06570091,91323.0,91320.0,0.04728512]
[1767509638743,0.06470191,91323.0,91320.0,0.04728512]
[1767509639589,0.06570014,91324.0,91320.0,0.04728512]
[1767509640036,0.01094978,91326.0,91321.0,0.01095038]
[1767509640240,0.06569942,91325.0,91322.0,0.04849452]
[1767509640450,0.01099692,91329.0,91326.0,0.04849452]
[1767509640826,0.0657446,91329.0,91326.0,0.04849452]
[1767509641368,0.01094954,91328.0,91324.0,0.05944454]
[1767509641558,0.06560951,91328.0,91324.0,0.05944454]
[1767509641749,0.01094966,91327.0,91324.0,0.04849452]
[1767509642355,0.06560951,91328.0,91324.0,0.04849452]
[1767509642969,0.06569812,91327.0,91324.0,0.04849452]
[1767509643176,0.06569726,91328.0,91324.0,0.05944454]
[1767509643378,0.01094966,91327.0,91324.0,0.04849452]
[1767509643724,0.06569803,91327.0,91324.0,0.04849452]
[1767509644158,0.01099692,91329.0,91325.0,0.04849452]
[1767509644583,0.06574457,91329.0,91325.0,0.04849452]
[1767509644757,0.06574457,91329.0,91325.0,0.05944442]
[1767509645720,0.04232831,91328.0,91324.0,0.02337178]
[1767509645923,0.01099692,91329.0,91325.0,0.0109499]
[1767509646060,0.01099692,91329.0,91326.0,0.04849452]
[1767509646267,0.06574418,91329.0,91326.0,0.04849452]
[1767509646665,0.01099692,91329.0,91326.0,0.04849452]
[1767509646882,0.02196,91330.0,91327.0,0.06569795]
[1767509647263,0.02196,91330.0,91329.0,0.05849452]
[1767509647637,0.02196,91330.0,91329.0,0.04849452]
[1767509648035,0.07670652,91330.0,91329.0,0.04729545]
[1767509648995,0.07670652,91330.0,91329.0,0.04709538]
[1767509649534,0.06569769,91328.0,91324.0,0.04849452]
[1767509649926,0.06565267,91328.0,91324.0,0.04849452]
[1767509650986,0.06569825,91327.0,91324.0,0.04849452]
[1767509651139,0.01094966,91327.0,91324.0,0.04849452]
[1767509651348,0.01094954,91328.0,91324.0,0.04849452]
[1767509651650,0.06569776,91328.0,91324.0,0.04849452]
[1767509651840,0.01094918,91331.0,91327.0,0.04839449]
[1767509652045,0.01094894,91333.0,91328.0,0.05464764]
[1767509652242,0.01094906,91332.0,91327.0,0.05934415]
[1767509652441,0.01094906,91332.0,91328.0,0.01094954]
[1767509652698,0.01094906,91332.0,91328.0,0.0656971]
[1767509653061,0.01094918,91331.0,91327.0,0.11409212]
[1767509653367,0.06569534,91331.0,91327.0,0.11409212]
[1767509653873,0.06569534,91331.0,91327.0,0.04839449]
[1767509654068,0.01094906,91332.0,91328.0,0.06559723]
[1767509654457,0.06569462,91332.0,91327.0,0.11409246]
[1767509654705,0.01094906,91332.0,91328.0,0.06569711]
[1767509654859,0.06569373,91333.0,91328.0,0.06565208]
[1767509655061,0.06569373,91333.0,91328.0,0.1141466]
[1767509655261,0.06569453,91332.0,91328.0,0.04849452]
[1767509655463,0.06569512,91331.0,91328.0,0.04849452]
[1767509655672,0.01094918,91331.0,91328.0,0.04849452]
[1767509655875,0.06569636,91330.0,91326.0,0.04849452]
[1767509656073,0.0109493,91330.0,91327.0,0.04849452]
[1767509656868,0.06569606,91330.0,91327.0,0.04849452]
[1767509657068,0.0109493,91330.0,91327.0,0.04849452]
[1767509657289,0.06569591,91330.0,91327.0,0.04849452]
[1767509657486,0.05474724,91329.0,91327.0,0.04849452]
[1767509657690,0.0109493,91330.0,91327.0,0.04849452]
[1767509657886,0.06569594,91330.0,91327.0,0.04849452]
[1767509658105,0.01094918,91331.0,91328.0,0.04849452]
[1767509658436,0.06569451,91332.0,91330.0,0.000999]
[1767509658582,0.06569451,91332.0,91328.0,0.06569707]
[1767509659112,0.06569451,91332.0,91328.0,0.01094954]
[1767509659326,0.06569451,91332.0,91328.0,0.05924399]
[1767509660338,0.06569451,91332.0,91328.0,0.05914396]
[1767509660639,0.02192,91335.0,91330.0,0.05944382]
[1767509660810,0.0328687,91335.0,91332.0,0.05949352]
[1767509661216,0.0328687,91335.0,91332.0,0.05849452]
[1767509661420,0.02192,91335.0,91332.0,0.01]
[1767509661805,0.02192,91335.0,91332.0,0.02094906]
[1767509662630,0.08761229,91335.0,91332.0,0.01]
[1767509662828,0.08761229,91335.0,91331.0,0.01094918]
[1767509664267,0.08761229,91335.0,91331.0,0.06569499]
[1767509664917,0.02192,91335.0,91332.0,0.04849452]
[1767509665115,0.0328687,91335.0,91332.0,0.04849452]
[1767509665519,0.02192,91335.0,91332.0,0.01094906]
[1767509665716,0.020921,91335.0,91331.0,0.06569496]
[1767509665939,0.020921,91335.0,91332.0,0.05474511]
[1767509666159,0.010921,91335.0,91333.0,0.05474455]
[1767509666320,0.010921,91335.0,91332.0,0.06569417]
[1767509666536,0.010921,91335.0,91330.0,0.06559526]
[1767509666537,0.000999,91332.0,91330.0,0.10324102]
[1767509666720,0.01284849,91332.0,91330.0,0.04189801]
[1767509667077,0.01094882,91334.0,91331.0,0.04849452]
[1767509667659,0.07661365,91335.0,91331.0,0.04849452]
[1767509667856,0.07661365,91335.0,91331.0,0.11418951]
[1767509668837,0.07661365,91335.0,91331.0,0.11418957]
[1767509669662,0.0218697,91335.0,91331.0,0.11418957]
[1767509669861,0.07661336,91335.0,91331.0,0.11418957]
[1767509670152,0.0218697,91335.0,91332.0,0.04768268]
[1767509670354,0.05474424,91334.0,91332.0,0.04768268]
[1767509670603,0.07661335,91335.0,91332.0,0.04768268]
[1767509671283,0.0766133,91335.0,91332.0,0.04768268]
[1767509671430,0.05474456,91334.0,91332.0,0.04768268]
[1767509671835,0.05474652,91330.0,91329.0,0.04768268]
[1767509672383,0.05474652,91330.0,91329.0,0.04748261]
[1767509672561,0.05474652,91330.0,91329.0,0.04648361]
[1767509672891,0.05474721,91329.0,91327.0,0.04678061]
[1767509673038,0.06569582,91330.0,91327.0,0.04678061]
[1767509673039,0.0109493,91330.0,91327.0,0.04678061]
[1767509673241,0.0109493,91330.0,91327.0,0.04658054]
[1767509673440,0.06569628,91330.0,91327.0,0.04658054]
[1767509674698,0.01094894,91333.0,91330.0,0.000999]
[1767509674903,0.05474554,91332.0,91330.0,0.000999]
[1767509675103,0.05474554,91332.0,91329.0,0.04678061]
[1767509675303,0.06569463,91332.0,91329.0,0.04678061]
[1767509675652,0.06569463,91332.0,91329.0,0.04668058]
[1767509676213,0.01094906,91332.0,91329.0,0.04668058]
[1767509678011,0.01094906,91332.0,91329.0,0.04663555]
[1767509678571,0.0656938,91333.0,91329.0,0.05758497]
[1767509678872,0.06569337,91334.0,91330.0,0.05752984]
[1767509679851,0.01094894,91333.0,91330.0,0.04538147]
[1767509680058,0.06569421,91333.0,91329.0,0.01094942]
[1767509680258,0.01094906,91332.0,91328.0,0.11247739]
[1767509680436,0.01094906,91332.0,91329.0,0.04678061]
[1767509680636,0.01094894,91333.0,91329.0,0.05773003]
[1767509680957,0.06569388,91333.0,91329.0,0.05752996]
[1767509681823,0.01094882,91334.0,91330.0,0.06569535]
[1767509682016,0.06569301,91334.0,91333.0,0.00079893]
[1767509682346,0.06569301,91334.0,91330.0,0.05772991]
[1767509682552,0.06569368,91333.0,91330.0,0.04678061]
[1767509682751,0.06569319,91334.0,91330.0,0.11247631]
[1767509683063,0.01094882,91334.0,91330.0,0.11227624]
[1767509683455,0.010921,91335.0,91334.0,0.010799]
[1767509683849,0.0218697,91335.0,91331.0,0.05772979]
[1767509684347,0.01094882,91334.0,91331.0,0.04678061]
[1767509684813,0.06569304,91334.0,91331.0,0.04678061]
[1767509686428,0.05474493,91333.0,91331.0,0.04658061]
[1767509686576,0.06569304,91334.0,91331.0,0.04658061]
[1767509686937,0.05474478,91333.0,91331.0,0.04658061]
[1767509687084,0.01094882,91334.0,91331.0,0.04658061]
[1767509687800,0.06569339,91334.0,91331.0,0.04658061]
[1767509687997,0.0547449,91333.0,91331.0,0.04658061]
[1767509688538,0.0547449,91333.0,91331.0,0.04643716]
[1767509689284,0.0547449,91333.0,91328.0,0.0656968]
[1767509689285,0.05474577,91332.0,91328.0,0.04678061]
[1767509689492,0.05474594,91331.0,91328.0,0.04678061]
[1767509689711,0.06569386,91333.0,91331.0,0.000999]
[1767509689910,0.06569386,91333.0,91329.0,0.06569644]
[1767509690133,0.06569386,91333.0,91329.0,0.11247705]
[1767509690358,0.06569386,91333.0,91329.0,0.05773003]
[1767509690591,0.01094906,91332.0,91329.0,0.04678061]
[1767509690986,0.01094882,91334.0,91329.0,0.05773003]
[1767509691140,0.06569326,91334.0,91332.0,0.000999]
[1767509691337,0.06569326,91334.0,91332.0,0.00095398]
[1767509691559,0.06569326,91334.0,91330.0,0.05474634]
[1767509691560,0.06569366,91333.0,91329.0,0.04678061]
[1767509691739,0.01094894,91333.0,91329.0,0.11247666]
[1767509691981,0.06569326,91334.0,91330.0,0.0109493]
[1767509692383,0.06569393,91333.0,91330.0,0.04678061]
[1767509692602,0.05474585,91332.0,91330.0,0.04678061]
[1767509692780,0.06569661,91329.0,91324.0,0.05773063]
[1767509692979,0.06574086,91330.0,91329.0,0.000954]
[1767509693200,0.06574086,91330.0,91327.0,0.04678061]
[1767509693201,0.06569586,91330.0,91327.0,0.04678061]
[1767509695329,0.06569586,91330.0,91327.0,0.04663716]
[1767509695748,0.0547473,91329.0,91327.0,0.04663716]
[1767509695894,0.06569586,91330.0,91327.0,0.04663716]
[1767509697645,0.06569618,91331.0,91327.0,0.04663716]
[1767509697795,0.0109493,91330.0,91327.0,0.04663716]
[1767509698177,0.06569631,91330.0,91327.0,0.04663716]
[1767509698514,0.05474607,91331.0,91330.0,0.000954]
[1767509698714,0.06569525,91331.0,91330.0,0.000954]
[1767509699045,0.06569593,91330.0,91327.0,0.04663716]
[1767509699548,0.06569593,91330.0,91327.0,0.04659216]
[1767509700113,0.01094906,91332.0,91328.0,0.10034559]
[1767509700320,0.06569375,91333.0,91330.0,0.000999]
[1767509700541,0.06569457,91332.0,91329.0,0.04559787]
[1767509701831,0.05474605,91331.0,91329.0,0.04559787]
[1767509702031,0.06569523,91331.0,91327.0,0.11129583]
[1767509702436,0.0109493,91330.0,91327.0,0.04559787]
[1767509702637,0.06569685,91330.0,91327.0,0.04559787]
[1767509703178,0.06569685,91330.0,91327.0,0.04555284]
[1767509704077,0.05474718,91329.0,91327.0,0.04555284]
[1767509704225,0.06569685,91330.0,91327.0,0.04555284]
[1767509704863,0.05474755,91329.0,91327.0,0.04555284]
[1767509705069,0.05474772,91328.0,91327.0,0.04555284]
[1767509705380,0.05474755,91329.0,91327.0,0.04555284]
[1767509705759,0.06569597,91330.0,91327.0,0.04555284]
[1767509705962,0.0109493,91330.0,91327.0,0.04555284]
[1767509706165,0.05474754,91329.0,91327.0,0.04555284]
[1767509706690,0.05474772,91328.0,91327.0,0.04555284]
[1767509706927,0.05474754,91329.0,91327.0,0.04555284]
[1767509708266,0.05474772,91328.0,91327.0,0.04555284]
[1767509708724,0.05474754,91329.0,91327.0,0.04555284]
[1767509709255,0.05474765,91329.0,91327.0,0.04555284]
[1767509710107,0.05474772,91328.0,91327.0,0.04555284]
[1767509710321,0.05474765,91329.0,91327.0,0.04555284]
[1767509710495,0.05474772,91328.0,91327.0,0.04555284]
[1767509710825,0.05474765,91329.0,91327.0,0.04555284]
[1767509711394,0.01095013,91322.0,91311.0,0.01095158]
[1767509711735,0.01095013,91322.0,91307.0,0.05654993]
[1767509711736,0.01095254,91303.0,91299.0,0.05655089]
[1767509711975,0.01095302,91299.0,91296.0,0.00048625]
[1767509712162,0.01090834,91296.0,91292.0,5.4e-05]
[1767509712395,0.01095326,91297.0,91292.0,0.06577662]
[1767509712601,0.1117334,91300.0,91296.0,0.01095338]
[1767509712808,0.06571683,91301.0,91295.0,0.0109535]
[1767509713331,0.06571688,91301.0,91297.0,0.11131742]
[1767509713602,0.06571687,91301.0,91297.0,0.11131742]
[1767509713780,0.0109529,91300.0,91297.0,0.04559787]
[1767509713961,0.01095013,91300.0,91297.0,0.05655113]
[1767509714824,0.07666768,91300.0,91297.0,0.04559787]
[1767509715136,0.0109535,91295.0,91292.0,0.04565187]
[1767509715441,0.01095302,91299.0,91292.0,0.04565187]
[1767509715442,0.06571929,91298.0,91294.0,0.04559787]
[1767509715640,0.01095326,91297.0,91294.0,0.04559787]
[1767509715839,0.05476871,91293.0,91292.0,5.4e-05]
[1767509716071,0.05476871,91293.0,91279.0,0.21910692]
[1767509716072,0.05702377,91292.0,91283.0,0.01095494]
[1767509716270,0.05702377,91292.0,91275.0,0.21911661]
[1767509716271,0.0109553,91280.0,91276.0,0.01095578]
[1767509716421,0.05477362,91285.0,91276.0,0.01095578]
[1767509716743,0.06572912,91284.0,91280.0,0.05477645]
[1767509716920,0.01090082,91284.0,91280.0,0.05477645]
[1767509717121,0.06572853,91285.0,91281.0,0.06573095]
[1767509717328,0.01095434,91288.0,91282.0,0.01095506]
[1767509717530,0.01095013,91287.0,91282.0,0.01095506]
[1767509717733,0.01095013,91287.0,91284.0,0.05477406]
[1767509717919,0.01095013,91287.0,91284.0,0.05457399]
[1767509718119,0.02190459,91287.0,91283.0,0.06572932]
[1767509718498,0.01095013,91287.0,91284.0,0.06572879]
[1767509719160,0.01095013,91287.0,91283.0,0.06572932]
[1767509719319,0.01095013,91287.0,91284.0,0.05477411]
[1767509719517,0.01095013,91287.0,91284.0,0.01095482]
[1767509719761,0.02190459,91287.0,91283.0,0.06572932]
[1767509719957,0.02190459,91287.0,91283.0,0.01095494]
[1767509720564,0.07667692,91287.0,91283.0,0.06572932]
[1767509720771,0.01095013,91287.0,91284.0,0.01095482]
[1767509720994,0.01095013,91287.0,91284.0,0.06572889]
[1767509721183,0.01095013,91287.0,91285.0,0.04559787]
[1767509723225,0.06572252,91287.0,91285.0,0.04559787]
[1767509724010,0.01095013,91287.0,91285.0,0.04559787]
[1767509724769,0.05477291,91286.0,91285.0,0.04459887]
[1767509725884,0.05477291,91286.0,91283.0,0.05655281]
[1767509726092,0.06572678,91287.0,91283.0,0.05655281]
[1767509726292,0.01095458,91286.0,91283.0,0.04559787]
[1767509726909,0.01095013,91285.0,91282.0,0.01095506]
[1767509727335,0.01095013,91285.0,91282.0,0.01091109]
[1767509727649,0.05477428,91284.0,91280.0,0.06573071]
[1767509728344,0.07667847,91285.0,91281.0,0.01095518]
[1767509728759,0.07667847,91285.0,91281.0,0.06573105]
[1767509729302,0.02190483,91285.0,91282.0,0.05477528]
[1767509729723,0.07667835,91285.0,91282.0,0.04559787]
[1767509730471,0.07667837,91285.0,91282.0,0.04559787]
[1767509730776,0.01095446,91287.0,91285.0,4.887e-05]
[1767509730983,0.06572656,91288.0,91285.0,4.887e-05]
[1767509731555,0.06572656,91288.0,91285.0,0.00041053]
[1767509732379,0.02192,91289.0,91286.0,0.01075451]
[1767509732546,0.02192,91289.0,91288.0,4.886e-05]
[1767509732871,0.0876458,91289.0,91286.0,0.04708385]
[1767509734959,0.000999,91286.0,91285.0,0.00041053]
[1767509735216,0.05477262,91287.0,91285.0,0.00041053]
[1767509735819,0.05477291,91286.0,91285.0,0.00041053]
[1767509736021,0.0113647,91285.0,91279.0,0.01095542]
[1767509736233,0.06573039,91282.0,91279.0,4.75e-05]
[1767509736415,0.00047266,91279.0,91276.0,0.11281806]
[1767509736736,0.05477707,91281.0,91277.0,0.06573391]
[1767509736963,0.06562307,91281.0,91277.0,0.04946372]
[1767509737181,0.06542308,91281.0,91277.0,0.04946372]
[1767509738045,0.01095518,91281.0,91278.0,0.04708385]
[1767509738364,0.05477637,91281.0,91278.0,0.04708385]
[1767509739062,0.01095518,91281.0,91278.0,0.05477766]
[1767509739239,0.01095518,91281.0,91279.0,0.04708385]
[1767509740365,0.06573111,91281.0,91279.0,0.04708385]
[1767509740710,0.05477831,91277.0,91276.0,5.546e-05]
[1767509740957,0.04317223,91277.0,91276.0,5.546e-05]
[1767509741288,0.05477771,91278.0,91276.0,5.546e-05]
[1767509741859,0.08765221,91280.0,91278.0,0.000999]
[1767509742153,0.05477446,91284.0,91280.0,0.04708385]
[1767509742520,0.06573091,91282.0,91278.0,0.01095554]
[1767509742799,0.06573091,91282.0,91278.0,0.06573272]
[1767509743702,0.06573091,91282.0,91278.0,0.01095554]
[1767509743903,0.01095506,91282.0,91278.0,0.01095554]
[1767509744269,0.01095506,91282.0,91279.0,0.05477705]
[1767509744602,0.01088622,91282.0,91279.0,0.05477705]
[1767509744839,0.06573162,91281.0,91277.0,0.01095566]
[1767509745039,0.01095518,91281.0,91277.0,0.01095566]
[1767509745715,0.01088622,91282.0,91278.0,0.0657331]
[1767509747230,0.06566166,91282.0,91278.0,0.01095554]
[1767509747889,0.05477544,91282.0,91278.0,0.06573311]
[1767509748114,0.06572967,91283.0,91278.0,0.06573311]
[1767509748115,0.01095494,91283.0,91278.0,0.06573311]
[1767509748333,0.05477575,91282.0,91278.0,0.01095554]
[1767509749225,0.01095518,91281.0,91277.0,0.06573393]
[1767509749375,0.06573113,91281.0,91277.0,0.06573393]
[1767509750414,0.06573081,91282.0,91278.0,0.06573302]
[1767509750615,0.06573038,91282.0,91278.0,0.06573302]
[1767509751532,0.05477591,91281.0,91278.0,0.01095554]
[1767509752775,0.04680764,91280.0,91278.0,0.01091157]
[1767509752928,0.04680764,91280.0,91277.0,0.06573393]
[1767509753136,0.06573038,91282.0,91277.0,0.06573393]
[1767509753332,0.01095506,91282.0,91279.0,0.06573252]
[1767509753954,0.06573069,91283.0,91279.0,0.06573252]
[1767509754421,0.01095506,91282.0,91278.0,0.0657327]
[1767509755282,0.06573135,91281.0,91277.0,0.06573396]
[1767509755633,0.06473235,91281.0,91277.0,0.11281781]
[1767509756381,0.06473235,91281.0,91277.0,0.06573396]
[1767509759006,0.06473235,91281.0,91277.0,0.11281781]
[1767509759187,0.06473235,91281.0,91277.0,0.11277384]
[1767509759692,0.06573086,91282.0,91277.0,0.11277384]
[1767509760134,0.01095518,91281.0,91277.0,0.11277384]
[1767509760467,0.06573124,91281.0,91277.0,0.11277384]
[1767509761159,0.02019943,91285.0,91278.0,0.07164707]
[1767509761277,0.000999,91278.0,91276.0,5.546e-05]
[1767509761478,0.00999947,91278.0,91276.0,5.546e-05]
[1767509762130,0.06477721,91278.0,91276.0,5.546e-05]
[1767509762429,0.00999947,91278.0,91276.0,4.6e-07]
[1767509762731,0.05477831,91277.0,91276.0,4.6e-07]
[1767509763030,0.10043188,91277.0,91276.0,4.6e-07]
[1767509764352,0.10043188,91277.0,91257.0,0.06564786]
[1767509764353,0.05478747,91262.0,91257.0,0.06564786]
[1767509764573,0.05661055,91266.0,91262.0,5.5e-05]
[1767509764784,0.0109571,91265.0,91259.0,0.06574643]
[1767509764984,0.1113964,91265.0,91260.0,0.05478848]
[1767509765197,0.06574283,91265.0,91260.0,0.05478848]
[1767509765402,0.0109571,91265.0,91261.0,0.0547876]
[1767509765719,0.06574266,91265.0,91261.0,0.0547876]
[1767509765914,0.06574266,91265.0,91261.0,0.01095758]
[1767509766117,0.0657434,91264.0,91260.0,0.06574618]
[1767509766529,0.06574261,91265.0,91264.0,5.5e-05]
[1767509766748,0.06574261,91265.0,91262.0,0.01095746]
[1767509766887,0.06574261,91265.0,91261.0,0.06574534]
[1767509767087,0.05478558,91265.0,91262.0,0.01095746]
[1767509767324,0.065743,91266.0,91262.0,0.01095746]
[1767509767514,0.05478554,91265.0,91262.0,0.01095746]
[1767509767894,0.06574264,91265.0,91261.0,0.01095758]
[1767509768096,0.01095746,91262.0,91258.0,0.01095794]
[1767509768302,0.01095746,91262.0,91259.0,0.05478907]
[1767509768726,0.06574487,91262.0,91258.0,0.06574717]
[1767509769001,0.06574487,91262.0,91250.0,0.40026056]
[1767509769002,0.01095758,91261.0,91257.0,8.48e-06]
[1767509769200,0.000889,91258.0,91257.0,0.05479879]
[1767509769398,0.06574609,91261.0,91257.0,0.06575685]
[1767509769776,0.01095758,91261.0,91257.0,0.06575685]
[1767509770222,0.06574282,91265.0,91261.0,0.05484272]
[1767509770441,0.06574282,91265.0,91261.0,0.06575601]
[1767509770648,0.06574282,91265.0,91261.0,0.06574498]
[1767509770826,0.0109571,91265.0,91261.0,0.06574498]
[1767509771034,0.0109571,91265.0,91262.0,0.0657446]
[1767509771242,0.06574273,91265.0,91261.0,0.06574498]
[1767509771445,0.05478495,91266.0,91262.0,0.06574427]
[1767509772392,0.06574128,91267.0,91263.0,0.06574391]
[1767509772621,0.08765956,91270.0,91265.0,0.0109571]
[1767509772807,0.01095638,91271.0,91267.0,0.11547695]
[1767509773016,0.02192,91279.0,91273.0,0.01095614]
[1767509773214,0.03287542,91279.0,91275.0,0.0109559]